Workbook

Sheet ETo (mensal)
A1: Evapotranspiração de referência de Penman-Monteith (Cálculo mensal)
A2: (Programado por José Paulo de Melo e Abreu, Prof. Do ISA, Ulisboa; jpabreu@isa.ulisboa.pt)
A3: Coloque os dados nas células a verde e ponteados. As células a verde que não estão ponteadas são optativas.
A4: Os valores nas células cinzentas são valores tabelados.
A5: Ra= radiação no topo da atmosfera (valor tabelado que entra com a latitude e o mês do ano).
A6: λ = calor latente de vaporização. Valor que varia muito pouco com a temperatura , pelo que se pode dar um valor único.
A7: Tem de permitir a "Activação de macros", se lhe for pedido, quando abre a folha de cálculo para poder trabalhar sem problemas.
C9: Evapotranspiração de referência de Penman-Monteith
B10: Estação: | C10: Lisboa/Tapada | L10: Período: | M10: 1951/80
B11: Latitude: | C11: =38+42/60 -> 38.7 | D11: Longitude: | E11: =-(9+11/60) -> -9.2 | I11: Altitude: | J11: 50.0 | K11: m | L11: Alt. Anemómetro | M11: 6.0 | N11: m
C12: Jan | D12: Fev | E12: Mar | F12: Abr | G12: Mai | H12: Jun | I12: Jul | J12: Ago | K12: Set | L12: Out | M12: Nov | N12: Dez
A13: 1 | B13: TM [ºC] | C13: 14.9 | D13: 15.8 | E13: 17.6 | F13: 19.9 | G13: 22.6 | H13: 25.4 | I13: 28.1 | J13: 28.5 | K13: 26.7 | L13: 22.7 | M13: 18.3 | N13: 15.4
A14: 2 | B14: Tm[ºC] | C14: 7.1 | D14: 7.6 | E14: 8.5 | F14: 9.8 | G14: 11.6 | H14: 14.0 | I14: 15.8 | J14: 16.1 | K14: 15.1 | L14: 13.2 | M14: 9.9 | N14: 7.6
A15: 3 | B15: T [ºC] | C15: =AVERAGE(C13:C14) -> 11.0 | D15: =AVERAGE(D13:D14) -> 11.7 | E15: 13.1 | F15: 14.9 | G15: 17.1 | H15: 19.7 | I15: 22.0 | J15: 22.3 | K15: 20.9 | L15: 18.0 | M15: 14.1 | N15: 11.5
A16: 4 | B16: T1 [ºC] | C16: 10.3 | D16: 10.9 | E16: 12.7 | F16: 14.8 | G16: 17.5 | H16: 20.0 | I16: 21.9 | J16: 21.9 | K16: 20.6 | L16: 17.7 | M16: 13.5 | N16: 10.8
A17: 5 | B17: T2 [ºC] | C17: 11.9 | D17: 12.9 | E17: 13.4 | F17: 15.4 | G17: 17.6 | H17: 20.4 | I17: 23.4 | J17: 23.3 | K17: 22.0 | L17: 18.4 | M17: 14.9 | N17: 12.6
A18: 6 | B18: RH1 [%] | C18: 87.0 | D18: 84.0 | E18: 82.0 | F18: 76.0 | G18: 73.0 | H18: 71.0 | I18: 69.0 | J18: 69.0 | K18: 74.0 | L18: 78.0 | M18: 81.0 | N18: 84.0
A19: 7 | B19: RH2 [%] | C19: 81.0 | D19: 77.0 | E19: 73.0 | F19: 69.0 | G19: 67.0 | H19: 65.0 | I19: 61.0 | J19: 60.0 | K19: 66.0 | L19: 72.0 | M19: 74.0 | N19: 77.0
A20: 8 | B20: es(TM) | C20: =calcSatVapPres(C13) -> 1.692 | D20: =calcSatVapPres(D13) -> 1.793 | E20: 2.010 | F20: 2.321 | G20: 2.739 | H20: 3.241 | I20: 3.799 | J20: 3.889 | K20: 3.500 | L20: 2.756 | M20: 2.101 | N20: 1.747
A21: 9 | B21: es(Tm) | C21: =calcSatVapPres(C14) -> 1.007 | D21: =calcSatVapPres(D14) -> 1.042 | E21: 1.108 | F21: 1.210 | G21: 1.364 | H21: 1.596 | I21: 1.793 | J21: 1.828 | K21: 1.714 | L21: 1.515 | M21: 1.218 | N21: 1.042
A22: 10 | B22: es(T1) | C22: =calcSatVapPres(C16) -> 1.251 | D22: =calcSatVapPres(D16) -> 1.302 | E22: 1.467 | F22: 1.681 | G22: 1.998 | H22: 2.336 | I22: 2.625 | J22: 2.625 | K22: 2.424 | L22: 2.023 | M22: 1.545 | N22: 1.294
A23: 11 | B23: es(T2) | C23: =calcSatVapPres(C17) -> 1.391 | D23: =calcSatVapPres(D17) -> 1.486 | E23: 1.535 | F23: 1.747 | G23: 2.010 | H23: 2.394 | I23: 2.875 | J23: 2.858 | K23: 2.641 | L23: 2.114 | M23: 1.692 | N23: 1.457
A24: 12 | B24: es [KPa] | C24: =(C20+C21)/2 -> 1.350 | D24: =(D20+D21)/2 -> 1.418 | E24: 1.559 | F24: 1.766 | G24: 2.052 | H24: 2.419 | I24: 2.796 | J24: 2.858 | K24: 2.607 | L24: 2.136 | M24: 1.659 | N24: 1.395
A25: 13 | B25: e [KPa] | C25: =(C18/100*C22+C19/100*C23)/2 -> 1.108 | D25: =(D18/100*D22+D19/100*D23)/2 -> 1.119 | E25: 1.162 | F25: 1.242 | G25: 1.402 | H25: 1.607 | I25: 1.783 | J25: 1.763 | K25: 1.768 | L25: 1.550 | M25: 1.252 | N25: 1.104
A26: 14 | B26: D [KPa] | C26: =C24-C25 -> 0.242 | D26: =D24-D25 -> 0.299 | E26: 0.398 | F26: 0.524 | G26: 0.649 | H26: 0.812 | I26: 1.013 | J26: 1.095 | K26: 0.839 | L26: 0.586 | M26: 0.407 | N26: 0.291
A27: 15 | B27: n [h]
A28: 16 | B28: N [h]
A29: 17 | B29: n/N | C29: 0.44 | D29: 0.50 | E29: 0.50 | F29: 0.60 | G29: 0.66 | H29: 0.69 | I29: 0.80 | J29: 0.80 | K29: 0.68 | L29: 0.58 | M29: 0.52 | N29: 0.48
A30: 18 | B30: Ra [MJ m-2 d-1] | C30: 16.50 | D30: 21.70 | E30: 28.60 | F30: 35.25 | G30: 40.10 | H30: 42.20 | I30: 40.90 | J30: 37.30 | K30: 31.10 | L30: 24.20 | M30: 17.90 | N30: 14.60
A31: 19 | B31: Rns [MJ m-2 d-1] | C31: =0.77*(0.25+0.5*C29)*C30 -> 5.97135 | D31: =0.77*(0.25+0.5*D29)*D30 -> 8.3545 | E31: 11.011 | F31: 14.928375 | G31: 17.90866 | H31: 19.33393 | I31: 20.47045 | J31: 18.66865 | K31: 14.12873 | L31: 10.06236 | M31: 7.02933 | N31: 5.50858
A32: 20 | B32: f | C32: =(0.9*C29+0.1) -> 0.496 | D32: =(0.9*D29+0.1) -> 0.550 | E32: 0.550 | F32: 0.640 | G32: 0.694 | H32: 0.721 | I32: 0.820 | J32: 0.820 | K32: 0.712 | L32: 0.622 | M32: 0.568 | N32: 0.532
A33: 21 | B33: s (TM4+Tm4)/2 [MJ m-2 d-1] | C33: =4.9*10^-9*((C13+273)^4+(C14+273)^4)/2 -> 31.91248105 | D33: =4.9*10^-9*((D13+273)^4+(D14+273)^4)/2 -> 32.23191043 | E33: 32.85660624 | F33: 33.70251711 | G33: 34.77944658 | H33: 36.04741265 | I33: 37.18100993 | J33: 37.35915951 | K33: 36.64444378 | L33: 35.1692838 | M33: 33.3339032 | N33: 32.13768345
A34: 22 | C34: =-(1-(0.6+0.14*C25^0.5)) -> -0.2526506424 | D34: =-(1-(0.6+0.14*D25^0.5)) -> -0.2519037536 | E34: -0.2491055932 | F34: -0.24399247 | G34: -0.2342021418 | H34: -0.2225111405 | I34: -0.2130764622 | J34: -0.2141052683 | K34: -0.213823895 | L34: -0.2257046063 | M34: -0.24335275 | N34: -0.2528843896
A35: 23 | B35: Rnl [MJ m-2 d-1] | C35: =C32*C34*C33 -> -3.999103583 | D35: =D32*D34*D33 -> -4.465636573 | E35: -4.501620414 | F35: -5.262822652 | G35: -5.65292209 | H35: -5.7831056 | I35: -6.496366406 | J35: -6.559010153 | K35: -5.578845881 | L35: -4.937354738 | M35: -4.607557502 | N35: -4.323627023
A36: 24 | B36: Rn [MJ m-2 d-1] | C36: =C35+C31 -> 1.972246417 | D36: =D35+D31 -> 3.888863427 | E36: 6.509379586 | F36: 9.665552348 | G36: 12.25573791 | H36: 13.5508244 | I36: 13.97408359 | J36: 12.10963985 | K36: 8.549884119 | L36: 5.125005262 | M36: 2.421772498 | N36: 1.184952977
A37: 25 | B37: D [kPa k-1] | C37: =calcSlope(C15) -> 0.088 | D37: =calcSlope(D15) -> 0.091 | E37: =calcSlope(E15) -> 0.098 | F37: =calcSlope(F15) -> 0.109 | G37: 0.123 | H37: 0.142 | I37: 0.161 | J37: 0.164 | K37: 0.152 | L37: 0.129 | M37: 0.104 | N37: 0.090
A38: 26 | B38: D Rn | C38: =C37*C36 -> 0.1727313727 | D38: =D37*D36 -> 0.3544149051 | E38: 0.6402896906 | F38: 1.051746428 | G38: 1.511019481 | H38: 1.926443774 | I38: 2.243203281 | J38: 1.980676373 | K38: 1.297122351 | L38: 0.6621388925 | M38: 0.2526946489 | N38: 0.1067726483
A39: 27 | B39: Tv [K] | C39: =(273+C15)*(1+0.38*C25/101.3) -> 285.1801383 | D39: =(273+D15)*(1+0.38*D25/101.3) -> 285.8950708 | E39: 287.2965403 | F39: 289.1908353 | G39: 291.6262428 | H39: 294.4647492 | I39: 296.9223976 | J39: 297.2530605 | K39: 295.8496899 | L39: 292.6416412 | M39: 288.4483319 | N39: 285.6784682
A40: 28 | B40: P [kPa] | C40: =101.3*(1-0.000022*50)^5.26 -> 100.7152498 | D40: =101.3*(1-0.000022*50)^5.26 -> 100.7152498 | E40: 100.7152498 | F40: 100.7152498 | G40: 100.7152498 | H40: 100.7152498 | I40: 100.7152498 | J40: 100.7152498 | K40: 100.7152498 | L40: 100.7152498 | M40: 100.7152498 | N40: 100.7152498
A41: 29 | B41: r [kg m-3] | C41: =3.486*C40/C39 -> 1.231128377 | D41: =3.486*D40/D39 -> 1.228049717 | E41: 1.222059133 | F41: 1.214054244 | G41: 1.203915524 | H41: 1.192310325 | I41: 1.182441486 | J41: 1.181126143 | K41: 1.186728845 | L41: 1.199738217 | M41: 1.217179377 | N41: 1.22898083
A42: 30 | B42: cp [MJ kg-1 k-1] | C42: =1.013*10^-3 -> 0.0010 | D42: =1.013*10^-3 -> 0.0010 | E42: 0.0010 | F42: 0.0010 | G42: 0.0010 | H42: 0.0010 | I42: 0.0010 | J42: 0.0010 | K42: 0.0010 | L42: 0.0010 | M42: 0.0010 | N42: 0.0010
A43: 31 | B43: u [m s-1] | C43: 2.111111111 | D43: 2.388888889 | E43: 2.111111111 | F43: 2.138888889 | G43: 2.138888889 | H43: 2.25 | I43: 2.444444444 | J43: 2.416666667 | K43: 2.055555556 | L43: 1.944444444 | M43: 1.972222222 | N43: 2.111111111
A44: 32 | B44: u(2) [m s-1] | C44: =C43*5/(4.4+LN(6-0.07)) -> 1.708012006 | D44: =D43*5/(4.4+LN(6-0.07)) -> 1.932750428 | E44: 1.708012006 | F44: 1.730485849 | G44: 1.730485849 | H44: 1.820381217 | I44: 1.977698113 | J44: 1.95522427 | K44: 1.663064322 | L44: 1.573168953 | M44: 1.595642795 | N44: 1.708012006
A45: 33 | B45: ra [d m-1] | C45: =230*10^-5/C44 -> 0.0013 | D45: =230*10^-5/D44 -> 0.0012 | E45: 0.0013 | F45: 0.0013 | G45: 0.0013 | H45: 0.0013 | I45: 0.0012 | J45: 0.0012 | K45: 0.0014 | L45: 0.0015 | M45: 0.0014 | N45: 0.0013
A46: 34 | B46: r cp D / ra | C46: =C41*C42*C26/C45 -> 0.224145203 | D46: =D41*D42*D26/D45 -> 0.3122040615 | E46: 0.3654726334 | F46: 0.4846867845 | G46: 0.5957637446 | H46: 0.7758510382 | I46: 1.043764181 | J46: 1.113780768 | K46: 0.7290907848 | L46: 0.486976824 | M46: 0.3485115198 | N46: 0.2687832768
A47: 35 | B47: l [MJ kg-1] | C47: 2.475 | D47: 2.473 | E47: 2.470 | F47: 2.465 | G47: 2.461 | H47: 2.454 | I47: 2.449 | J47: 2.449 | K47: 2.451 | L47: 2.458 | M47: 2.468 | N47: 2.473
A48: 36 | B48: g [ kPa K-1] | C48: =0.00163*C40/C47 -> 0.06632963929 | D48: =0.00163*D40/D47 -> 0.06638328235 | E48: 0.06646390982 | F48: 0.06659872505 | G48: 0.06670697166 | H48: 0.06689725234 | I48: 0.06703383309 | J48: 0.06703383309 | K48: 0.06697913392 | L48: 0.06678838781 | M48: 0.06651777036 | N48: 0.06638328235
A49: 37 | C49: =C47*(C37+C48*(1+0.34*C44)) -> 0.4762639733 | D49: =D47*(D37+D48*(1+0.34*D44)) -> 0.4974239886 | E49: =E47*(E37+E48*(1+0.34*E44)) -> 0.5024604127 | F49: 0.5289815916 | G49: 0.5641739412 | H49: 0.614644216 | I49: 0.6676819223 | J49: 0.6738626493 | K49: 0.6288388868 | L49: 0.569542418 | M49: 0.5107470385 | N49: 0.4823357236
A50: 38 | B50: ETP [mm d-1] | C50: =(C38+C46)/C49 -> 0.8333121922 | D50: =(D38+D46)/D49 -> 1.340142377 | E50: 2.001674756 | F50: 2.904511683 | G50: 3.734279575 | H50: 4.396518737 | I50: 4.922954107 | J50: 4.592118503 | K50: 3.222149867 | L50: 2.017612175 | M50: 1.177111414 | N50: 0.7786193449
A51: 39 | B51: ETP [mm mês-1] | C51: =C50*31 -> 25.83267796 | D51: =D50*28.25 -> 37.85902216 | E51: =E50*31 -> 62.05191743 | F51: =F50*30 -> 87.13535048 | G51: 115.7626668 | H51: =H50*30 -> 131.8955621 | I51: 152.6115773 | J51: 142.3556736 | K51: =K50*30 -> 96.66449601 | L51: 62.54597741 | M51: =M50*30 -> 35.31334242 | N51: 24.13719969
B53: Eq. 6 (FAO 56) | C53: =(0.408*C36*C37/(C37+C48*(1+0.34*C44)))+900*C44/(273+C15)*C26*C48/(C37+C48*(1+0.34*C44)) -> 0.8177820143 | D53: =(0.408*D36*D37/(D37+D48*(1+0.34*D44)))+900*D44/(273+D15)*D26*D48/(D37+D48*(1+0.34*D44)) -> 1.321117535 | E53: 1.982208866 | F53: 2.879169456 | G53: 3.70352282 | H53: 4.351453936 | I53: 4.860629739 | J53: 4.526602638 | K53: 3.177896616 | L53: 1.987624888 | M53: 1.153229701 | N53: 0.7580040941
